[Event "*** Titled Tuesday Blitz"]
[Site "Chess.com"]
[Date "2021.04.06"]
[Round "4"]
[White "Hikaru"]
[Black "superchess02"]
[Result "1-0"]
[WhiteElo "3226"]
[BlackElo "2813"]
[TimeControl "180+1"]
[EndTime "10:37:54 PDT"]
[Termination "Hikaru won by resignation"]

1. e4 {[%clk 0:03:00.9]} 1... c5 {[%clk 0:03:00.2]} 2. Nf3 {[%clk 0:03:00.8]}
2... d6 {[%clk 0:03:00.7]} 3. c3 {[%clk 0:03:01]} 3... Nf6 {[%clk 0:03:01]} 4.
h3 {[%clk 0:03:00]} 4... Nbd7 {[%clk 0:03:00.4]} 5. Bd3 {[%clk 0:02:59.9]} 5...
g6 {[%clk 0:03:00.5]} 6. Bc2 {[%clk 0:02:59.8]} 6... Bg7 {[%clk 0:03:01.1]} 7.
d4 {[%clk 0:02:59.6]} 7... e5 {[%clk 0:03:00.9]} 8. O-O {[%clk 0:02:50]} 8...
O-O {[%clk 0:03:01.3]} 9. dxe5 {[%clk 0:02:50.6]} 9... dxe5 {[%clk 0:03:01.3]}
10. c4 {[%clk 0:02:50.5]} 10... b6 {[%clk 0:02:57.5]} 11. Nc3 {[%clk 0:02:50.1]}
11... Bb7 {[%clk 0:02:57.9]} 12. Qe2 {[%clk 0:02:50.4]} 12... Qe7 {[%clk
0:02:55.4]} 13. Rd1 {[%clk 0:02:46.1]} 13... h6 {[%clk 0:02:55.5]} 14. Rb1
{[%clk 0:02:39.3]} 14... Rfd8 {[%clk 0:02:54.4]} 15. b3 {[%clk 0:02:38.3]} 15...
Nf8 {[%clk 0:02:53.9]} 16. Nd5 {[%clk 0:02:38.8]} 16... Bxd5 {[%clk 0:02:53.5]}
17. cxd5 {[%clk 0:02:37.2]} 17... Ne8 {[%clk 0:02:53.3]} 18. Bd3 {[%clk
0:02:30.2]} 18... Nd6 {[%clk 0:02:53.4]} 19. Bb2 {[%clk 0:02:28.9]} 19... Nd7
{[%clk 0:02:44]} 20. a4 {[%clk 0:02:28.2]} 20... f5 {[%clk 0:02:34.1]} 21. Re1
{[%clk 0:02:22.2]} 21... Re8 {[%clk 0:02:29.1]} 22. g3 {[%clk 0:02:16.5]} 22...
Qf7 {[%clk 0:02:20.3]} 23. Bc2 {[%clk 0:02:12.9]} 23... fxe4 {[%clk 0:02:10.1]}
24. Nd2 {[%clk 0:02:12.4]} 24... Nf6 {[%clk 0:02:02.5]} 25. Nxe4 {[%clk
0:02:11.3]} 25... Nf5 {[%clk 0:01:52.9]} 26. Nxf6+ {[%clk 0:02:06.8]} 26... Bxf6
{[%clk 0:01:50.9]} 27. Be4 {[%clk 0:02:07]} 27... Nd4 {[%clk 0:01:47.5]} 28. Qd3
{[%clk 0:02:05.4]} 28... Kg7 {[%clk 0:01:47.3]} 29. b4 {[%clk 0:01:53.1]} 29...
Rac8 {[%clk 0:01:45.1]} 30. bxc5 {[%clk 0:01:53.1]} 30... Rxc5 {[%clk 0:01:46]}
31. f4 {[%clk 0:01:42.9]} 31... Rxd5 {[%clk 0:00:57.8]} 32. Bxd5 {[%clk
0:01:41.2]} 32... Qxd5 {[%clk 0:00:57.6]} 33. Bxd4 {[%clk 0:01:41.1]} 33... Rd8
{[%clk 0:00:48.4]} 34. fxe5 {[%clk 0:01:40]} 34... Be7 {[%clk 0:00:44.9]} 35.
Re4 {[%clk 0:01:35.7]} 35... Bc5 {[%clk 0:00:44.2]} 36. Rd1 {[%clk 0:01:35.9]}
1-0

[Event "*** Titled Tuesday Blitz"]
[Site "Chess.com"]
[Date "2021.04.06"]
[Round "4"]
[White "Deepweb2020"]
[Black "esrosenberg"]
[Result "1-0"]
[WhiteElo "2524"]
[BlackElo "2208"]
[TimeControl "180+1"]
[EndTime "10:37:58 PDT"]
[Termination "Deepweb2020 won on time"]

1. e4 {[%clk 0:03:00.9]} 1... e5 {[%clk 0:02:59.9]} 2. Nc3 {[%clk 0:02:59.1]}
2... Nf6 {[%clk 0:02:59.9]} 3. f4 {[%clk 0:02:59.4]} 3... d5 {[%clk 0:03:00]} 4.
fxe5 {[%clk 0:02:59.7]} 4... Nxe4 {[%clk 0:02:59.7]} 5. d3 {[%clk 0:02:57.5]}
5... Qh4+ {[%clk 0:02:48.7]} 6. g3 {[%clk 0:02:56.8]} 6... Nxg3 {[%clk
0:02:46.2]} 7. Nf3 {[%clk 0:02:57.2]} 7... Qh5 {[%clk 0:02:43.8]} 8. Nxd5 {[%clk
0:02:49.4]} 8... Bg4 {[%clk 0:01:59.6]} 9. Bg2 {[%clk 0:02:45.4]} 9... Nxh1
{[%clk 0:01:58.2]} 10. Nxc7+ {[%clk 0:02:42]} 10... Kd8 {[%clk 0:01:57.4]} 11.
Nxa8 {[%clk 0:02:42.6]} 11... Bxf3 {[%clk 0:01:24.1]} 12. Qxf3 {[%clk
0:02:40.7]} 12... Qxe5+ {[%clk 0:01:24]} 13. Kd1 {[%clk 0:02:33.7]} 13... Bb4
{[%clk 0:01:10.8]} 14. c3 {[%clk 0:02:32.5]} 14... Re8 {[%clk 0:01:09]} 15. Bxh1
{[%clk 0:02:12.4]} 15... Qe1+ {[%clk 0:01:05.6]} 16. Kc2 {[%clk 0:02:12.7]}
16... Re2+ {[%clk 0:00:55.5]} 17. Kb3 {[%clk 0:02:12.2]} 17... Qd1+ {[%clk
0:00:49.2]} 18. Kxb4 {[%clk 0:02:12.5]} 18... Na6+ {[%clk 0:00:36.1]} 19. Ka3
{[%clk 0:02:08.5]} 19... Qc2 {[%clk 0:00:11.2]} 20. Qxb7 {[%clk 0:01:59.2]}
20... Qxd3 {[%clk 0:00:03.3]} 21. Bf4 {[%clk 0:01:37.3]} 1-0

[Event "*** Titled Tuesday Blitz"]
[Site "Chess.com"]
[Date "2021.04.06"]
[Round "4"]
[White "WonderChampion"]
[Black "Redbandit87"]
[Result "0-1"]
[WhiteElo "2117"]
[BlackElo "2398"]
[TimeControl "180+1"]
[EndTime "10:37:58 PDT"]
[Termination "Redbandit87 won by resignation"]

1. d4 {[%clk 0:03:00.9]} 1... d5 {[%clk 0:02:59.4]} 2. Bg5 {[%clk 0:03:00.6]}
2... c5 {[%clk 0:02:58.5]} 3. e3 {[%clk 0:02:59.1]} 3... Qb6 {[%clk 0:02:57.8]}
4. b3 {[%clk 0:02:54.5]} 4... e6 {[%clk 0:02:50.6]} 5. Nc3 {[%clk 0:02:52.2]}
5... Nc6 {[%clk 0:02:50.3]} 6. Bf4 {[%clk 0:02:49.6]} 6... cxd4 {[%clk
0:02:47.9]} 7. exd4 {[%clk 0:02:20.9]} 7... Bb4 {[%clk 0:02:47]} 8. Qd2 {[%clk
0:02:10.8]} 8... Qxd4 {[%clk 0:02:44.6]} 9. Nge2 {[%clk 0:01:57.4]} 9... Qxd2+
{[%clk 0:02:35.2]} 10. Bxd2 {[%clk 0:01:58.3]} 10... Nf6 {[%clk 0:02:33.9]} 11.
Ng3 {[%clk 0:01:55.5]} 11... a6 {[%clk 0:02:30.7]} 12. Bd3 {[%clk 0:01:54]}
12... O-O {[%clk 0:02:29.3]} 13. O-O {[%clk 0:01:52.7]} 13... e5 {[%clk
0:02:29.4]} 14. a3 {[%clk 0:01:38.6]} 14... Bxc3 {[%clk 0:02:28.4]} 15. Bxc3
{[%clk 0:01:39.5]} 15... d4 {[%clk 0:02:28.6]} 16. Bd2 {[%clk 0:01:39.1]} 16...
Be6 {[%clk 0:02:27.5]} 17. Nf5 {[%clk 0:01:36]} 17... Bxf5 {[%clk 0:02:27]} 18.
Bxf5 {[%clk 0:01:34.1]} 18... g6 {[%clk 0:02:27.6]} 19. Bd3 {[%clk 0:01:31.8]}
19... e4 {[%clk 0:02:27.3]} 20. Bc4 {[%clk 0:01:29.9]} 20... Ne5 {[%clk
0:02:27.3]} 21. Be2 {[%clk 0:01:25.8]} 21... d3 {[%clk 0:02:26.1]} 22. cxd3
{[%clk 0:01:26.7]} 22... exd3 {[%clk 0:02:27]} 23. Bf3 {[%clk 0:01:24.9]} 23...
Nxf3+ {[%clk 0:02:26.6]} 24. gxf3 {[%clk 0:01:25.8]} 24... Rac8 {[%clk
0:02:23.8]} 25. Rac1 {[%clk 0:00:55.3]} 25... Nd5 {[%clk 0:02:21.1]} 26. b4
{[%clk 0:00:53.3]} 26... b5 {[%clk 0:02:18.6]} 27. Rfe1 {[%clk 0:00:50.8]} 27...
Nb6 {[%clk 0:02:15.5]} 28. Rc5 {[%clk 0:00:44.4]} 28... Rxc5 {[%clk 0:02:14.4]}
29. bxc5 {[%clk 0:00:45.3]} 29... Nc4 {[%clk 0:02:15]} 30. Be3 {[%clk
0:00:42.9]} 30... d2 {[%clk 0:02:14.5]} 31. Rd1 {[%clk 0:00:35.9]} 31... Rd8
{[%clk 0:02:12.7]} 32. c6 {[%clk 0:00:26.8]} 32... Rc8 {[%clk 0:02:12.3]} 33.
Bxd2 {[%clk 0:00:25]} 33... Rxc6 {[%clk 0:02:12.2]} 34. Be3 {[%clk 0:00:24.3]}
34... Nxe3 {[%clk 0:02:10.8]} 35. fxe3 {[%clk 0:00:25.2]} 35... Rc3 {[%clk
0:02:11.1]} 36. e4 {[%clk 0:00:20.3]} 36... Rxf3 {[%clk 0:02:09.7]} 37. Rd8+
{[%clk 0:00:20.9]} 37... Kg7 {[%clk 0:02:09.6]} 38. a4 {[%clk 0:00:18.7]} 38...
bxa4 {[%clk 0:02:07]} 39. Rd6 {[%clk 0:00:19.6]} 39... Rf6 {[%clk 0:02:06.6]}
0-1

[Event "*** Titled Tuesday Blitz"]
[Site "Chess.com"]
[Date "2021.04.06"]
[Round "4"]
[White "Zq1"]
[Black "gahryman"]
[Result "1-0"]
[WhiteElo "2543"]
[BlackElo "2742"]
[TimeControl "180+1"]
[EndTime "10:38:02 PDT"]
[Termination "Zq1 won by resignation"]

1. d4 {[%clk 0:03:00.9]} 1... Nf6 {[%clk 0:02:59.8]} 2. c4 {[%clk 0:03:00.4]}
2... g6 {[%clk 0:03:00.7]} 3. Nc3 {[%clk 0:02:59.5]} 3... Bg7 {[%clk 0:03:01.1]}
4. e4 {[%clk 0:02:59.6]} 4... d6 {[%clk 0:03:02]} 5. Nf3 {[%clk 0:02:59.7]} 5...
O-O {[%clk 0:03:02.4]} 6. Be2 {[%clk 0:02:59.8]} 6... e5 {[%clk 0:03:02.5]} 7.
O-O {[%clk 0:02:59.7]} 7... exd4 {[%clk 0:03:02.3]} 8. Nxd4 {[%clk 0:02:59.6]}
8... Re8 {[%clk 0:03:03.2]} 9. f3 {[%clk 0:02:59.7]} 9... c6 {[%clk 0:03:03.6]}
10. Kh1 {[%clk 0:02:57.9]} 10... Nbd7 {[%clk 0:03:03.4]} 11. Bg5 {[%clk
0:02:56.4]} 11... Qb6 {[%clk 0:03:02.8]} 12. Nb3 {[%clk 0:02:54.5]} 12... a5
{[%clk 0:03:02.3]} 13. Qd2 {[%clk 0:02:52]} 13... a4 {[%clk 0:02:52.1]} 14. Be3
{[%clk 0:02:50.7]} 14... Qc7 {[%clk 0:02:51.9]} 15. Nd4 {[%clk 0:02:45]} 15...
Ne5 {[%clk 0:02:46.8]} 16. Rac1 {[%clk 0:02:41.8]} 16... Nfd7 {[%clk 0:02:43.6]}
17. f4 {[%clk 0:02:37.5]} 17... a3 {[%clk 0:02:05.9]} 18. b3 {[%clk 0:02:32]}
18... Nf6 {[%clk 0:02:03.2]} 19. fxe5 {[%clk 0:02:30.4]} 19... dxe5 {[%clk
0:02:04.1]} 20. Nc2 {[%clk 0:02:27.4]} 20... Rd8 {[%clk 0:02:02.8]} 21. Qe1
{[%clk 0:02:24.6]} 21... Ng4 {[%clk 0:01:59.7]} 22. Bg1 {[%clk 0:02:20.2]} 22...
f5 {[%clk 0:01:55.3]} 23. exf5 {[%clk 0:02:18.1]} 23... gxf5 {[%clk 0:01:54.6]}
24. Bxg4 {[%clk 0:02:16.5]} 24... fxg4 {[%clk 0:01:55]} 25. Ne4 {[%clk
0:02:16.6]} 25... Qe7 {[%clk 0:01:39.6]} 26. Ne3 {[%clk 0:02:13.4]} 26... Be6
{[%clk 0:01:28.1]} 27. Nf5 {[%clk 0:02:12.3]} 27... Bxf5 {[%clk 0:01:28.5]} 28.
Rxf5 {[%clk 0:02:09]} 28... Rd3 {[%clk 0:01:28.6]} 29. Qe2 {[%clk 0:02:03.5]}
29... Rad8 {[%clk 0:01:23.5]} 30. Qxg4 {[%clk 0:02:03.1]} 30... Kh8 {[%clk
0:01:24.1]} 31. h3 {[%clk 0:01:58.5]} 31... Qd7 {[%clk 0:01:08.5]} 32. Rcf1
{[%clk 0:01:55.6]} 32... Rd1 {[%clk 0:01:07.1]} 33. Rxd1 {[%clk 0:01:46.3]}
33... Qxd1 {[%clk 0:01:06.7]} 34. Qxd1 {[%clk 0:01:46.2]} 34... Rxd1 {[%clk
0:01:07.6]} 35. Kh2 {[%clk 0:01:34.3]} 35... Re1 {[%clk 0:00:58.5]} 36. Nc5
{[%clk 0:01:29.5]} 36... e4 {[%clk 0:00:58.4]} 37. Ne6 {[%clk 0:01:27.2]} 37...
Bh6 {[%clk 0:00:58.3]} 38. Rf6 {[%clk 0:01:24.8]} 1-0

[Event "*** Titled Tuesday Blitz"]
[Site "Chess.com"]
[Date "2021.04.06"]
[Round "4"]
[White "LEGENYA1998"]
[Black "ChainsOfFantasia"]
[Result "1-0"]
[WhiteElo "2228"]
[BlackElo "2414"]
[TimeControl "180+1"]
[EndTime "10:38:14 PDT"]
[Termination "LEGENYA1998 won by resignation"]

1. e4 {[%clk 0:03:00.9]} 1... c6 {[%clk 0:02:58.4]} 2. d4 {[%clk 0:02:54.9]}
2... d5 {[%clk 0:02:58.8]} 3. e5 {[%clk 0:02:49.3]} 3... c5 {[%clk 0:02:54.9]}
4. dxc5 {[%clk 0:02:44.2]} 4... Nc6 {[%clk 0:02:51.8]} 5. f4 {[%clk 0:02:32.9]}
5... Bf5 {[%clk 0:02:44.3]} 6. Nf3 {[%clk 0:02:30]} 6... e6 {[%clk 0:02:42.8]}
7. Be3 {[%clk 0:02:29.6]} 7... f6 {[%clk 0:02:04.1]} 8. Bb5 {[%clk 0:02:25.3]}
8... Bg4 {[%clk 0:01:52.7]} 9. h3 {[%clk 0:02:22.2]} 9... Bxf3 {[%clk
0:01:47.9]} 10. Qxf3 {[%clk 0:02:22]} 10... Ne7 {[%clk 0:01:25.5]} 11. exf6
{[%clk 0:02:16.6]} 11... gxf6 {[%clk 0:01:13.5]} 12. Nc3 {[%clk 0:02:16.3]}
12... Qd7 {[%clk 0:01:05]} 13. O-O-O {[%clk 0:02:14.2]} 13... O-O-O {[%clk
0:01:02.4]} 14. Rhe1 {[%clk 0:02:13.2]} 14... Rg8 {[%clk 0:00:55.9]} 15. g4
{[%clk 0:02:12.6]} 15... h5 {[%clk 0:00:55.8]} 16. Ne2 {[%clk 0:02:02.5]} 16...
hxg4 {[%clk 0:00:54.4]} 17. hxg4 {[%clk 0:02:01.6]} 17... Qc7 {[%clk 0:00:50.7]}
18. Nd4 {[%clk 0:01:57.9]} 18... Nxd4 {[%clk 0:00:33.9]} 19. Bxd4 {[%clk
0:01:58.2]} 19... Qa5 {[%clk 0:00:25]} 20. Qb3 {[%clk 0:01:54]} 20... Rxg4
{[%clk 0:00:20.2]} 21. Rxe6 {[%clk 0:01:52.1]} 21... Rxf4 {[%clk 0:00:19.2]} 22.
Bc3 {[%clk 0:01:36.7]} 22... Qc7 {[%clk 0:00:17.9]} 23. Bxf6 {[%clk 0:01:34.2]}
23... Bh6 {[%clk 0:00:16.5]} 24. Kb1 {[%clk 0:01:33.5]} 24... Nc6 {[%clk
0:00:14.5]} 25. Bxd8 {[%clk 0:01:28]} 25... Nxd8 {[%clk 0:00:13.8]} 26. Rxh6
{[%clk 0:01:27.7]} 1-0

[Event "*** Titled Tuesday Blitz"]
[Site "Chess.com"]
[Date "2021.04.06"]
[Round "4"]
[White "AniJak"]
[Black "Ajedrez_con_German"]
[Result "0-1"]
[WhiteElo "2286"]
[BlackElo "2478"]
[TimeControl "180+1"]
[EndTime "10:38:16 PDT"]
[Termination "Ajedrez_con_German won by resignation"]

1. e4 {[%clk 0:03:00.9]} 1... d5 {[%clk 0:02:59.2]} 2. exd5 {[%clk 0:03:00.2]}
2... Qxd5 {[%clk 0:02:58.7]} 3. Nc3 {[%clk 0:02:59.1]} 3... Qd6 {[%clk
0:02:58.7]} 4. Bc4 {[%clk 0:02:58.5]} 4... Nf6 {[%clk 0:02:52.1]} 5. Nf3 {[%clk
0:02:53.8]} 5... Bg4 {[%clk 0:02:36.8]} 6. O-O {[%clk 0:02:50.1]} 6... e6 {[%clk
0:02:35.5]} 7. d3 {[%clk 0:02:42.1]} 7... Be7 {[%clk 0:02:33.6]} 8. h3 {[%clk
0:02:38]} 8... Bh5 {[%clk 0:02:28]} 9. Bg5 {[%clk 0:02:37.4]} 9... O-O {[%clk
0:02:19]} 10. Bxf6 {[%clk 0:02:27.8]} 10... Bxf6 {[%clk 0:02:15.6]} 11. Ne4
{[%clk 0:02:28.7]} 11... Qd8 {[%clk 0:02:14.4]} 12. c3 {[%clk 0:02:21.1]} 12...
Be7 {[%clk 0:02:09.8]} 13. Ng3 {[%clk 0:02:19.4]} 13... Bg6 {[%clk 0:02:06.3]}
14. Ne5 {[%clk 0:02:19.2]} 14... Nd7 {[%clk 0:01:51.7]} 15. Nxg6 {[%clk
0:02:17]} 15... hxg6 {[%clk 0:01:51.7]} 16. Qe2 {[%clk 0:02:17.8]} 16... c5
{[%clk 0:01:49.4]} 17. Rad1 {[%clk 0:02:16.5]} 17... Nf6 {[%clk 0:01:46]} 18. d4
{[%clk 0:02:15.1]} 18... Qc7 {[%clk 0:01:44]} 19. Rfe1 {[%clk 0:02:09.4]} 19...
Rfd8 {[%clk 0:01:38.7]} 20. Bxe6 {[%clk 0:02:05.1]} 20... fxe6 {[%clk
0:01:36.5]} 21. Qxe6+ {[%clk 0:02:04.2]} 21... Kf8 {[%clk 0:01:36.2]} 22. Ne4
{[%clk 0:01:54.1]} 22... Nxe4 {[%clk 0:01:34]} 23. Rxe4 {[%clk 0:01:52.3]} 23...
Bf6 {[%clk 0:01:29.3]} 24. g4 {[%clk 0:01:31.9]} 24... Re8 {[%clk 0:01:23.9]}
25. Qd5 {[%clk 0:01:27.5]} 25... Qc6 {[%clk 0:01:12.2]} 26. Rxe8+ {[%clk
0:01:18.5]} 26... Rxe8 {[%clk 0:01:10.9]} 27. dxc5 {[%clk 0:01:18.8]} 27... Re1+
{[%clk 0:01:02.8]} 28. Kh2 {[%clk 0:01:15.8]} 28... Be5+ {[%clk 0:00:50.9]} 0-1

[Event "*** Titled Tuesday Blitz"]
[Site "Chess.com"]
[Date "2021.04.06"]
[Round "4"]
[White "Joseacorrea"]
[Black "Vyacheslav_N"]
[Result "0-1"]
[WhiteElo "2094"]
[BlackElo "2381"]
[TimeControl "180+1"]
[EndTime "10:38:16 PDT"]
[Termination "Vyacheslav_N won on time"]

1. c4 {[%clk 0:02:59.9]} 1... e5 {[%clk 0:02:57.9]} 2. Nc3 {[%clk 0:03:00.2]}
2... Nf6 {[%clk 0:02:57.7]} 3. g3 {[%clk 0:03:00.4]} 3... c6 {[%clk 0:02:56.9]}
4. d4 {[%clk 0:02:58.7]} 4... e4 {[%clk 0:02:55.2]} 5. d5 {[%clk 0:02:55.5]}
5... Bb4 {[%clk 0:02:54.6]} 6. Bd2 {[%clk 0:02:45.8]} 6... d6 {[%clk 0:02:51.8]}
7. Bg2 {[%clk 0:02:44.4]} 7... O-O {[%clk 0:02:47.6]} 8. Nxe4 {[%clk 0:02:37.6]}
8... Bxd2+ {[%clk 0:02:46.8]} 9. Qxd2 {[%clk 0:02:38.5]} 9... cxd5 {[%clk
0:02:46.6]} 10. Nxf6+ {[%clk 0:02:33.9]} 10... Qxf6 {[%clk 0:02:47.5]} 11. cxd5
{[%clk 0:02:34.2]} 11... Nd7 {[%clk 0:02:47]} 12. e4 {[%clk 0:02:26.3]} 12...
Nc5 {[%clk 0:02:43.9]} 13. Ne2 {[%clk 0:02:25.2]} 13... Bd7 {[%clk 0:02:43.7]}
14. O-O {[%clk 0:02:22.3]} 14... Rfe8 {[%clk 0:02:40.3]} 15. Nc3 {[%clk
0:02:20.9]} 15... Rac8 {[%clk 0:02:37.9]} 16. Rfe1 {[%clk 0:02:15.1]} 16... b5
{[%clk 0:02:36.1]} 17. a3 {[%clk 0:02:03.9]} 17... Nb3 {[%clk 0:02:33.1]} 18.
Qd3 {[%clk 0:01:59.8]} 18... Nxa1 {[%clk 0:02:31.9]} 19. Rxa1 {[%clk 0:02:00.7]}
19... a6 {[%clk 0:02:32.2]} 20. f4 {[%clk 0:01:55.3]} 20... Qd8 {[%clk
0:02:29.7]} 21. Re1 {[%clk 0:01:46.5]} 21... Qb6+ {[%clk 0:02:04.9]} 22. Kh1
{[%clk 0:01:31.2]} 22... a5 {[%clk 0:02:04.5]} 23. e5 {[%clk 0:01:23.2]} 23...
b4 {[%clk 0:02:02.6]} 24. axb4 {[%clk 0:01:05.2]} 24... axb4 {[%clk 0:02:03.5]}
25. Nb1 {[%clk 0:00:42.7]} 25... dxe5 {[%clk 0:01:50.4]} 26. fxe5 {[%clk
0:00:42.7]} 26... Bb5 {[%clk 0:01:49.1]} 27. Qf5 {[%clk 0:00:22.5]} 27... Qg6
{[%clk 0:01:46.9]} 28. Qf4 {[%clk 0:00:11.4]} 28... Bd3 {[%clk 0:01:45.7]} 29.
Nd2 {[%clk 0:00:07.5]} 29... Qf5 {[%clk 0:01:42.4]} 30. Qxf5 {[%clk 0:00:05.3]}
30... Bxf5 {[%clk 0:01:43.3]} 0-1

[Event "*** Titled Tuesday Blitz"]
[Site "Chess.com"]
[Date "2021.04.06"]
[Round "4"]
[White "NTBT_DHS"]
[Black "Oleksandr_Bortnyk"]
[Result "0-1"]
[WhiteElo "2733"]
[BlackElo "2945"]
[TimeControl "180+1"]
[EndTime "10:38:21 PDT"]
[Termination "Oleksandr_Bortnyk won by resignation"]

1. d4 {[%clk 0:03:00.9]} 1... d6 {[%clk 0:02:50.2]} 2. c4 {[%clk 0:02:59.4]}
2... e5 {[%clk 0:02:50.4]} 3. dxe5 {[%clk 0:02:57.3]} 3... dxe5 {[%clk
0:02:50.6]} 4. Qxd8+ {[%clk 0:02:57.9]} 4... Kxd8 {[%clk 0:02:51.5]} 5. Nc3
{[%clk 0:02:58.4]} 5... Be6 {[%clk 0:02:52.2]} 6. b3 {[%clk 0:02:56.6]} 6... c6
{[%clk 0:02:52.5]} 7. Bb2 {[%clk 0:02:56.9]} 7... Nd7 {[%clk 0:02:53.2]} 8.
O-O-O {[%clk 0:02:57.5]} 8... Kc7 {[%clk 0:02:53.8]} 9. g3 {[%clk 0:02:58.1]}
9... a5 {[%clk 0:02:53.5]} 10. Nf3 {[%clk 0:02:57.5]} 10... f6 {[%clk
0:02:53.8]} 11. h4 {[%clk 0:02:56.9]} 11... Bb4 {[%clk 0:02:53.6]} 12. Bh3
{[%clk 0:02:57.1]} 12... Bxh3 {[%clk 0:02:52.4]} 13. Rxh3 {[%clk 0:02:58]} 13...
Ne7 {[%clk 0:02:51.8]} 14. h5 {[%clk 0:02:58.2]} 14... Nc5 {[%clk 0:02:48.6]}
15. Ne1 {[%clk 0:02:33.2]} 15... Bxc3 {[%clk 0:02:46.3]} 16. Bxc3 {[%clk
0:02:31]} 16... Ne4 {[%clk 0:02:47.2]} 17. g4 {[%clk 0:01:55]} 17... Nxf2 {[%clk
0:02:46]} 18. Rg3 {[%clk 0:01:54.8]} 18... Nxd1 {[%clk 0:02:45.2]} 19. Kxd1
{[%clk 0:01:55.7]} 19... b6 {[%clk 0:02:41.8]} 20. Kc2 {[%clk 0:01:53.4]} 20...
Rad8 {[%clk 0:02:41.2]} 21. g5 {[%clk 0:01:52.4]} 21... Rhg8 {[%clk 0:02:21.7]}
22. e4 {[%clk 0:01:49.5]} 22... Kd6 {[%clk 0:02:13.4]} 23. Nf3 {[%clk
0:01:47.6]} 23... Ke6 {[%clk 0:02:12.9]} 24. Rg2 {[%clk 0:01:35.9]} 24... c5
{[%clk 0:02:11.2]} 25. Nh4 {[%clk 0:01:31.2]} 25... Nc6 {[%clk 0:02:03.6]} 26.
Nf5 {[%clk 0:01:27.5]} 26... g6 {[%clk 0:02:01.7]} 27. Nh6 {[%clk 0:01:23.4]}
27... Rgf8 {[%clk 0:02:00.5]} 28. hxg6 {[%clk 0:01:16.4]} 28... hxg6 {[%clk
0:02:00.7]} 29. gxf6 {[%clk 0:01:16.3]} 29... Rxf6 {[%clk 0:02:01.6]} 30. Ng4
{[%clk 0:01:16.8]} 30... Rf4 {[%clk 0:01:52.8]} 31. Ne3 {[%clk 0:01:14.7]} 31...
Nd4+ {[%clk 0:01:40.5]} 32. Bxd4 {[%clk 0:01:13.3]} 32... exd4 {[%clk
0:01:41.2]} 33. Nd5 {[%clk 0:01:13.6]} 33... Rf3 {[%clk 0:01:38.8]} 34. Rxg6+
{[%clk 0:01:07.6]} 34... Ke5 {[%clk 0:01:38.9]} 35. Rxb6 {[%clk 0:00:50.4]}
35... Rh8 {[%clk 0:01:36.4]} 36. Kb2 {[%clk 0:00:44.1]} 36... d3 {[%clk
0:01:32.6]} 37. Rc6 {[%clk 0:00:36.5]} 37... Rh2+ {[%clk 0:01:32.3]} 38. Ka3
{[%clk 0:00:34.5]} 38... d2 {[%clk 0:01:33]} 39. Rxc5 {[%clk 0:00:35.1]} 39...
Kd4 {[%clk 0:01:32.2]} 40. Rxa5 {[%clk 0:00:34.4]} 40... d1=Q {[%clk 0:01:32.5]}
41. Nb4 {[%clk 0:00:34]} 41... Rxb3+ {[%clk 0:01:31.3]} 0-1

[Event "*** Titled Tuesday Blitz"]
[Site "Chess.com"]
[Date "2021.04.06"]
[Round "4"]
[White "BendyBear"]
[Black "Zmof"]
[Result "0-1"]
[WhiteElo "2402"]
[BlackElo "2223"]
[TimeControl "180+1"]
[EndTime "10:38:22 PDT"]
[Termination "Zmof won by resignation"]

1. e4 {[%clk 0:03:00.9]} 1... c5 {[%clk 0:02:58]} 2. b3 {[%clk 0:03:00.3]} 2...
Nc6 {[%clk 0:02:56.7]} 3. Bb2 {[%clk 0:03:00.7]} 3... Nf6 {[%clk 0:02:55.1]} 4.
e5 {[%clk 0:03:00.3]} 4... Nd5 {[%clk 0:02:54.4]} 5. Bb5 {[%clk 0:02:54.9]} 5...
Qc7 {[%clk 0:02:45.2]} 6. Qe2 {[%clk 0:02:52.4]} 6... a6 {[%clk 0:02:43.5]} 7.
Bxc6 {[%clk 0:02:52.1]} 7... Qxc6 {[%clk 0:02:43.1]} 8. Nf3 {[%clk 0:02:46.9]}
8... g6 {[%clk 0:02:39.8]} 9. c4 {[%clk 0:02:42.8]} 9... Nc7 {[%clk 0:02:37.2]}
10. Nc3 {[%clk 0:02:38.7]} 10... Bg7 {[%clk 0:02:35.2]} 11. d4 {[%clk
0:02:37.3]} 11... cxd4 {[%clk 0:02:33]} 12. Nxd4 {[%clk 0:02:38.1]} 12... Qxg2
{[%clk 0:02:32.9]} 13. O-O-O {[%clk 0:02:37.7]} 13... O-O {[%clk 0:02:25.6]} 14.
h4 {[%clk 0:02:34.6]} 14... b5 {[%clk 0:02:25.3]} 15. h5 {[%clk 0:02:31]} 15...
bxc4 {[%clk 0:02:23]} 16. hxg6 {[%clk 0:02:30.7]} 16... hxg6 {[%clk 0:02:21]}
17. Qxc4 {[%clk 0:02:28.1]} 17... Ne6 {[%clk 0:02:18]} 18. Nxe6 {[%clk
0:02:19.4]} 18... dxe6 {[%clk 0:02:18.4]} 19. Qh4 {[%clk 0:02:12]} 19... Re8
{[%clk 0:02:17.6]} 20. Qh7+ {[%clk 0:01:55.7]} 20... Kf8 {[%clk 0:02:16.7]} 21.
Rhg1 {[%clk 0:01:56.2]} 21... Qf3 {[%clk 0:02:11.9]} 22. Rg3 {[%clk 0:01:46.6]}
22... Qf4+ {[%clk 0:02:11]} 23. Kb1 {[%clk 0:01:42]} 23... Bb7 {[%clk
0:02:07.9]} 24. Ne2 {[%clk 0:01:28.5]} 24... Qe4+ {[%clk 0:02:03]} 25. Ka1
{[%clk 0:01:20.7]} 25... Qxe2 {[%clk 0:02:02.5]} 26. Rdg1 {[%clk 0:01:18.8]}
26... Red8 {[%clk 0:01:58.4]} 27. a4 {[%clk 0:01:17.6]} 27... Rd1+ {[%clk
0:01:56.5]} 28. Rxd1 {[%clk 0:01:15.1]} 28... Qxd1+ {[%clk 0:01:56.6]} 29. Ka2
{[%clk 0:01:16]} 29... Bd5 {[%clk 0:01:56.8]} 30. Qh4 {[%clk 0:01:09.9]} 30...
Rb8 {[%clk 0:01:54.8]} 31. Ba3 {[%clk 0:01:03.5]} 31... Rxb3 {[%clk 0:01:52.2]}
32. Qxe7+ {[%clk 0:01:00]} 32... Kg8 {[%clk 0:01:44.8]} 33. Qd8+ {[%clk
0:00:56.5]} 33... Kh7 {[%clk 0:01:43.2]} 34. Qh4+ {[%clk 0:00:55.7]} 34... Qh5
{[%clk 0:01:32.8]} 35. Qxh5+ {[%clk 0:00:51.9]} 35... gxh5 {[%clk 0:01:31.8]}
36. Rxb3 {[%clk 0:00:52.5]} 36... Bxe5 {[%clk 0:01:31.9]} 37. Bc1 {[%clk
0:00:44.8]} 37... h4 {[%clk 0:01:27.5]} 38. f4 {[%clk 0:00:44.9]} 38... Bd4
{[%clk 0:01:20.4]} 39. f5 {[%clk 0:00:45.1]} 39... e5 {[%clk 0:01:19.3]} 0-1